bitfinex/quotes_ETHUSD_20220202
["timestamp","ask_amount","ask_price","bid_price","bid_amount"]
[1643787903485,1.7052,2758.6,2758.1,0.9511365]
[1643787903688,2.61187,2758.6,2758.1,0.9511365]
[1643787904329,2.89512323,2758.6,2758.1,0.9511365]
[1643787904728,2.89512323,2758.6,2757.9,0.53299381]
[1643787906132,2.89512323,2758.6,2757.9,0.71419381]
[1643787906338,2.89512323,2758.6,2757.9,1.59771605]
[1643787906535,2.89512323,2758.6,2757.9,1.41651605]
[1643787909371,2.89512323,2758.6,2758.2,2.19405954]
[1643787911923,1.71392323,2758.6,2758.2,2.19405954]
[1643787912125,1.0,2758.5,2758.2,2.19405954]
[1643787912322,0.524,2758.4,2758.2,2.19405954]
[1643787912524,0.524,2758.3,2758.2,2.19405954]
[1643787913525,0.524,2758.3,2758.2,2.14405954]
[1643787914327,0.524,2758.3,2758.2,1.09702977]
[1643787914535,0.524,2758.3,2758.2,2.14405954]
[1643787914929,0.8764689,2758.1,2757.7,0.1812]
[1643787915139,0.8764689,2758.1,2757.2,0.25]
[1643787915140,0.8892233,2757.9,2757.3,0.1812]
[1643787915402,0.8764689,2757.7,2757.3,0.1812]
[1643787915594,0.8764689,2757.7,2757.1,0.1812]
[1643787915595,1.4004689,2757.6,2757.1,0.1812]
[1643787915793,2.4004689,2757.6,2757.1,0.1812]
[1643787917092,2.4004689,2757.6,2757.5,0.678702]
[1643787917294,2.4004689,2757.6,2757.5,0.528702]
[1643787918094,2.4004689,2757.6,2757.5,0.478702]
[1643787919036,2.4004689,2757.6,2756.9,1.04327539]
[1643787919423,2.4004689,2757.6,2756.6,1.1571]
[1643787919627,2.4004689,2757.6,2756.6,1.4571]
[1643787920023,2.4004689,2757.6,2756.6,2.36394]
[1643787920224,3.3073889,2757.6,2756.6,1.4571]
[1643787920423,0.8764689,2757.4,2756.6,1.4571]
[1643787920624,0.8764689,2757.2,2756.6,1.87316179]
[1643787920823,1.4004689,2757.1,2756.6,1.87316179]
[1643787921025,1.4004689,2757.1,2756.6,0.71606179]
[1643787921223,1.4004689,2757.1,2756.6,0.41606179]
[1643787921629,1.4004689,2757.1,2756.5,1.44662497]
[1643787921833,1.4004689,2757.1,2756.5,1.14662497]
[1643787923073,1.4004689,2757.1,2756.6,0.16125791]
[1643787923674,0.8764689,2756.9,2756.6,0.16125791]
[1643787923877,0.8764689,2756.7,2756.3,1.1713]
[1643787924075,0.8764689,2756.7,2756.4,0.16135765]
[1643787924076,1.4004689,2756.7,2756.4,0.16135765]
[1643787924275,2.4004689,2756.7,2756.5,0.16135765]
[1643787924480,2.4004689,2756.7,2756.2,1.50264264]
[1643787924481,1.4004689,2756.7,2756.2,1.50264264]
[1643787924682,1.4004689,2756.7,2756.3,0.16131578]
[1643787926939,1.4004689,2756.7,2756.5,0.70967411]
[1643787927340,1.4004689,2756.7,2756.6,3.41131578]
[1643787927742,1.4004689,2756.7,2756.6,0.16131578]
[1643787929438,1.4004689,2756.7,2756.6,0.06131578]
[1643787932683,0.2699782,2756.7,2756.6,0.06131578]
[1643787944327,1.18197751,2756.7,2756.6,0.06131578]
[1643787946778,1.48197751,2756.7,2756.6,0.06131578]
[1643787947382,2.48197751,2756.7,2756.6,0.06131578]
[1643787947988,1.48197751,2756.7,2756.6,0.06131578]
[1643787948182,9.5770966,2756.7,2756.6,0.06131578]
[1643787948392,0.91199931,2756.5,2755.8,0.67477356]
[1643787948595,0.91199931,2756.5,2755.6,0.68466317]
[1643787948596,0.91199931,2756.3,2755.6,0.68466317]
[1643787948783,0.91199931,2756.3,2755.5,0.68466317]
[1643787948784,1.61739931,2756.2,2755.5,0.68466317]
[1643787949028,0.91199931,2756.1,2755.5,0.68466317]
[1643787949231,1.0054,2756.2,2755.5,0.68466317]
[1643787949232,0.91199931,2755.9,2755.5,0.68466317]
[1643787949428,1.43599931,2755.8,2755.5,0.68466317]
[1643787949632,0.91199931,2755.6,2755.5,0.68466317]
[1643787950032,0.91199931,2755.6,2755.4,0.72743842]
[1643787950232,0.91199931,2755.6,2755.5,0.68481353]
[1643787950432,0.91199931,2755.6,2755.5,3.73481353]
[1643787950646,0.91199931,2755.6,2755.5,0.68481353]
[1643787950835,1.21199931,2755.6,2755.5,0.68481353]
[1643787951261,2.21199931,2755.6,2755.5,0.68481353]
[1643787951435,1.21199931,2755.6,2755.5,0.68481353]
[1643787951634,2.21199931,2755.6,2755.5,0.68481353]
[1643787952875,1.43752916,2755.6,2755.5,0.68481353]
[1643787953672,0.43752916,2755.6,2755.5,0.68481353]
[1643787953875,1.43752916,2755.6,2755.5,0.68481353]
[1643787954075,0.43752916,2755.6,2755.5,0.68859414]
[1643787954277,1.73752916,2755.6,2755.5,0.68859414]
[1643787954478,0.73752916,2755.6,2755.5,0.68859414]
[1643787954680,1.73752916,2755.6,2755.5,0.68859414]
[1643787955080,0.73752916,2755.6,2755.5,0.68859414]
[1643787955278,1.73752916,2755.6,2755.5,0.68859414]
[1643787955678,0.73752916,2755.6,2755.5,0.68859414]
[1643787955983,1.73752916,2755.6,2755.5,0.68859414]
[1643787956381,0.73752916,2755.6,2755.5,0.68859414]
[1643787957533,0.73752916,2755.6,2755.5,0.00378061]
[1643787959136,0.73752916,2755.6,2755.4,0.00378061]
[1643787959536,0.73752916,2755.6,2755.4,0.91505063]
[1643787960138,0.91892916,2755.6,2755.4,0.91505063]
[1643787960784,1.91892916,2755.6,2755.4,0.91505063]
[1643787961690,0.91892916,2755.6,2755.4,0.91505063]
[1643787961892,1.73752916,2755.6,2755.4,0.91505063]
[1643787962292,0.73752916,2755.6,2755.4,0.91505063]
[1643787962492,0.73752916,2755.6,2755.5,0.91127002]
[1643787962695,0.73752916,2755.6,2755.4,0.91505063]
[1643787963293,0.73752916,2755.6,2755.4,0.00378061]
[1643787963698,0.73752916,2755.6,2755.4,0.91505063]
[1643787964333,0.73752916,2755.6,2755.4,0.00378061]
[1643787965033,0.73752916,2755.6,2755.5,0.68541893]
[1643787965231,0.58752916,2755.6,2755.4,0.00378061]
[1643787966033,0.58752916,2755.6,2755.4,0.91505063]
[1643787966431,0.58752916,2755.6,2755.4,0.00378061]
[1643787967880,0.43752916,2755.3,2754.8,1.8224552]
[1643787968085,2.0125521,2755.5,2754.2,1.2382]
[1643787968086,0.01260918,2754.9,2754.2,1.2382]
[1643787968288,0.43752916,2754.7,2754.2,1.76919416]
[1643787968682,0.43752916,2754.7,2754.2,0.53099416]
[1643787968886,0.43752916,2754.6,2754.3,1.28105698]
[1643787969482,0.25458586,2754.6,2754.5,7.03149]
[1643787969880,0.1814,2755.5,2754.5,7.03149]
[1643787970282,0.1814,2755.5,2755.4,0.38577906]
[1643787970481,1.0887941,2755.5,2754.7,0.25]
[1643787970880,1.0887941,2755.5,2755.1,0.776189]
[1643787971082,1.3887941,2755.5,2755.1,0.776189]
[1643787971282,1.3887941,2755.5,2754.7,0.25]
[1643787971536,2.3887941,2755.5,2754.7,0.25]
[1643787971939,2.3887941,2755.5,2755.1,0.32789258]
[1643787973438,2.9127941,2755.5,2755.1,0.32789258]
[1643787975581,2.9127941,2755.5,2754.8,0.7312913]
[1643787976694,2.9127941,2755.5,2755.2,0.42548911]
[1643787978486,1.6127941,2755.5,2755.2,0.42548911]
[1643787978694,3.2071,2755.9,2755.2,0.42548911]
[1643787978695,0.1814,2755.7,2755.2,0.42548911]
[1643787979034,0.524,2755.9,2755.2,0.67548911]
[1643787979035,0.1814,2755.9,2755.2,0.67548911]
[1643787979236,0.1814,2756.1,2755.2,0.67548911]
[1643787980234,0.1814,2756.1,2755.6,0.8155555]
[1643787981841,0.4814,2756.1,2755.6,0.8155555]
[1643787982788,0.1814,2756.1,2755.6,0.8155555]
[1643787987739,0.49874108,2756.0,2755.6,0.8155555]
[1643787987941,0.79874108,2756.0,2755.6,0.8155555]
[1643787991498,0.79874108,2756.0,2755.4,0.91288135]
[1643787991703,0.79874108,2756.0,2755.3,1.1586]
[1643787991704,1.71525456,2755.9,2755.3,1.1586]
[1643787991902,1.71525456,2755.9,2755.2,0.85697911]
[1643787991903,2.71525456,2755.9,2755.2,0.85697911]
[1643787992109,2.71525456,2755.9,2755.2,0.25]
[1643787992304,1.53385456,2755.8,2755.2,0.25]
[1643787992507,1.4814,2755.9,2755.2,0.25]
[1643787992707,0.3,2755.8,2755.2,0.25]
[1643787993006,1.4814,2755.9,2755.3,0.7070572]
[1643787993007,1.7814,2755.9,2755.3,0.7070572]
[1643787993207,0.9074062,2755.7,2755.4,0.44325571]
[1643787993409,1.20613064,2755.7,2755.4,0.44325571]
[1643787993610,0.3,2755.7,2755.4,0.44325571]
[1643787993808,0.3,2755.8,2755.4,0.44325571]
[1643787994031,0.1814,2755.7,2755.3,0.91288135]
[1643787994428,1.71530624,2755.7,2755.2,0.25]
[1643787994638,1.53390624,2755.7,2755.2,0.25]
[1643787994832,0.1814,2755.7,2755.2,0.25]
[1643787995233,0.1814,2755.7,2755.3,0.37836308]
[1643787995433,0.1814,2755.7,2755.3,0.71070022]
[1643787995933,0.1814,2755.7,2755.3,1.62358157]
[1643787996133,0.1814,2755.9,2755.3,1.62358157]
[1643787996534,0.1814,2755.9,2755.6,0.41643446]
[1643787996743,1.53380672,2755.8,2755.3,1.62358157]
[1643787996932,1.53380672,2755.8,2755.3,0.71070022]
[1643787997140,1.83380672,2755.8,2755.3,0.71070022]
[1643787997333,0.3,2755.8,2755.3,0.71070022]
[1643787997535,1.4814,2755.9,2755.3,0.71070022]
[1643787997785,1.4814,2755.9,2755.3,1.62358157]
[1643787997983,1.4814,2755.9,2755.6,0.36020964]
[1643787998384,0.524,2755.8,2755.6,0.36020964]
[1643787998587,0.524,2755.8,2755.3,1.62358157]
[1643787998788,1.431297,2755.8,2755.3,0.71070022]
[1643787999387,2.431297,2755.8,2755.3,0.71070022]
[1643787999588,1.431297,2755.8,2755.3,0.71070022]
[1643787999794,2.431297,2755.8,2755.4,0.40909297]
[1643787999990,1.431297,2755.8,2755.4,0.40909297]
[1643788000188,2.431297,2755.8,2755.4,0.40909297]
[1643788000390,2.431297,2755.8,2755.3,0.71070022]
[1643788000687,1.431297,2755.8,2755.3,0.71070022]
[1643788000891,2.431297,2755.8,2755.3,0.71070022]
[1643788001529,2.431297,2755.8,2755.4,0.34575127]
[1643788001737,1.431297,2755.8,2755.4,0.34575127]
[1643788001934,2.431297,2755.8,2755.4,0.34575127]
[1643788002340,2.431297,2755.8,2755.3,0.71070022]
[1643788002535,2.431297,2755.8,2755.3,1.62358157]
[1643788002737,1.431297,2755.8,2755.3,1.62358157]
[1643788003038,1.381297,2755.8,2755.3,0.71070022]
[1643788003237,1.381297,2755.8,2755.3,1.62358157]
[1643788003434,1.381297,2755.8,2755.4,0.41188208]
[1643788006182,0.524,2755.8,2755.4,0.41188208]
[1643788006990,1.53390669,2755.7,2755.4,0.41188208]
[1643788007189,1.83390669,2755.7,2755.4,0.41188208]
[1643788007389,1.53390669,2755.6,2755.4,0.41188208]
[1643788007789,0.3,2755.7,2755.3,0.71070022]
[1643788008189,0.824,2755.8,2755.3,0.71070022]
[1643788008389,1.53386396,2755.7,2755.3,0.71070022]
[1643788009338,3.05786396,2755.7,2755.3,1.15504897]
[1643788009538,0.524,2755.7,2755.3,0.71070022]
[1643788010145,1.524,2755.7,2755.2,1.16288135]
[1643788010439,0.524,2755.7,2755.2,1.16288135]
[1643788010640,1.524,2755.7,2755.2,1.16288135]
[1643788010840,0.524,2755.7,2755.2,1.16288135]
[1643788011044,3.45687991,2755.6,2755.1,0.91288135]
[1643788011244,3.45687991,2755.6,2755.1,0.25]
[1643788011245,4.14677266,2755.5,2755.1,0.25]
[1643788011443,3.80975177,2755.4,2754.6,0.91288135]
[1643788011650,2.53933536,2755.3,2754.6,0.91288135]
[1643788011865,2.10348319,2755.2,2754.4,0.91288135]
[1643788012050,2.23933536,2755.1,2754.5,0.91288135]
[1643788012253,2.23933536,2755.1,2754.4,0.91288135]
[1643788012254,4.75908668,2755.0,2754.4,0.91288135]
[1643788012447,2.05793536,2754.9,2754.4,0.91288135]
[1643788012652,1.524,2754.9,2754.4,0.91288135]
[1643788012887,1.824,2754.9,2754.4,0.91288135]
[1643788013288,0.824,2754.9,2754.4,0.91288135]
[1643788013490,0.9076515,2754.8,2754.3,0.91288135]
[1643788013694,0.524,2754.7,2754.3,0.91288135]
[1643788014288,0.524,2754.7,2754.4,0.87089984]
[1643788014699,1.524,2754.7,2754.4,0.87089984]
[1643788014894,0.524,2754.7,2754.4,0.87089984]
[1643788015096,1.524,2754.7,2754.2,0.91288135]
[1643788015302,1.4316895,2754.7,2754.2,0.91288135]
[1643788015497,0.3,2754.6,2754.2,0.91288135]
[1643788015700,0.3,2754.6,2753.9,0.91288135]
[1643788015701,2.63529568,2754.5,2753.9,0.91288135]
[1643788015901,2.63529568,2754.5,2753.8,0.91288135]
[1643788015902,2.81669568,2754.5,2753.8,0.91288135]
[1643788016097,1.0,2754.4,2754.0,0.04035806]
[1643788016303,1.824,2754.4,2754.0,0.04035806]
[1643788016746,0.824,2754.4,2753.8,0.04149491]
[1643788016947,0.824,2754.4,2753.7,0.04206333]
[1643788016948,1.731879,2754.4,2753.7,0.04206333]
[1643788017345,1.91796726,2754.3,2753.7,0.04206333]
[1643788017747,2.91796726,2754.3,2753.7,0.04206333]
[1643788018945,1.0,2754.3,2753.7,0.04206333]
[1643788019146,0.9078766,2754.2,2753.7,0.04206333]
[1643788019347,0.3,2754.1,2753.7,0.04206333]
[1643788019749,0.3,2754.2,2753.7,0.04206333]
[1643788020145,0.524,2754.1,2753.7,0.04206333]
[1643788020390,1.4318478,2754.1,2753.7,0.04206333]
[1643788020793,1.7318478,2754.1,2753.7,0.04206333]
[1643788021294,1.7318478,2754.1,2753.4,2.19538132]
[1643788021495,1.7318478,2754.1,2753.2,0.54876188]
[1643788021496,1.97040376,2754.0,2753.2,0.54876188]
[1643788021698,0.524,2753.9,2753.2,0.54876188]
[1643788021911,1.96893317,2753.8,2753.2,0.54876188]
[1643788022097,0.524,2753.7,2753.2,0.54876188]
[1643788022304,0.72974661,2753.5,2752.6,3.95124042]
[1643788022508,0.72974661,2753.5,2752.4,1.01709296]
[1643788022509,0.01219173,2753.2,2752.4,1.01709296]
[1643788022702,0.01219173,2753.2,2752.2,1.1145718]
[1643788022703,0.7056,2753.1,2752.2,1.1145718]
[1643788022900,0.7056,2753.1,2752.2,2.02831516]
[1643788023302,0.9083099,2752.9,2752.2,2.02831516]
[1643788023500,0.524,2752.8,2752.2,1.1145718]
[1643788024845,1.0899429,2752.7,2752.2,1.1145718]
[1643788025044,0.524,2752.7,2752.2,1.1145718]
[1643788025244,1.3,2752.9,2752.6,6.65]
[1643788025245,0.1816,2752.9,2752.6,6.65]
[1643788025447,7.4623,2753.5,2752.6,6.65]
[1643788025448,0.1816,2753.2,2752.6,6.65]
[1643788025842,7.493753,2753.7,2752.6,6.65]
[1643788025843,0.1816,2753.6,2752.6,6.65]
[1643788026441,0.1816,2753.6,2752.6,6.83149]
[1643788026646,0.1816,2753.6,2752.6,0.18149]
[1643788026846,0.1816,2753.6,2752.5,1.16888488]
[1643788027048,0.9080888,2753.5,2752.5,1.16888488]
[1643788027246,0.7056,2753.4,2752.5,0.79619118]
[1643788027887,1.0056,2753.4,2752.5,0.79619118]
[1643788028292,1.0056,2753.4,2752.6,0.1816]
[1643788028490,1.0056,2753.4,2752.6,2.20483717]
[1643788029088,1.0056,2753.4,2752.6,0.1816]
[1643788029288,1.0056,2753.4,2752.6,2.17862734]
[1643788029489,1.0056,2753.4,2752.6,0.1816]
[1643788029696,6.554,2753.2,2752.4,0.1816]
[1643788029892,6.554,2753.2,2752.2,1.1145718]
[1643788029893,0.7056,2753.1,2752.2,1.1145718]
[1643788030093,1.7056,2753.1,2752.2,1.1145718]
[1643788030488,2.59246274,2753.1,2752.2,1.1145718]
[1643788031191,0.9084099,2752.9,2752.2,1.1145718]
[1643788031391,0.7056,2752.8,2752.2,1.1145718]
[1643788031651,1.6021,2752.8,2752.2,1.1145718]
[1643788031850,2.6021,2752.8,2752.2,1.1145718]
[1643788036188,1.6021,2752.8,2752.2,1.1145718]
[1643788037391,1.9021,2752.8,2752.2,1.1145718]
[1643788037593,0.9083617,2752.7,2752.2,1.1145718]
[1643788037791,0.824,2752.6,2752.2,1.1145718]
[1643788038498,1.824,2752.6,2752.2,1.1145718]
[1643788038691,0.824,2752.6,2752.2,1.1145718]
[1643788038893,1.824,2752.6,2752.2,1.1145718]
[1643788039741,0.1816,2752.5,2752.2,1.1145718]
[1643788039940,0.524,2752.4,2752.2,1.1145718]
[1643788040140,4.9316,2752.3,2752.2,1.1145718]
[1643788040345,2.64514499,2752.3,2752.2,1.1145718]
[1643788040540,3.64514499,2752.3,2752.2,1.1145718]
[1643788043589,2.8215,2752.3,2752.2,1.1145718]
[1643788043991,4.87499959,2752.3,2752.2,1.1145718]
[1643788044190,3.57499959,2752.3,2752.2,1.1145718]
[1643788044589,5.27527128,2752.3,2752.2,1.1145718]
[1643788046641,5.09367128,2752.3,2752.2,1.1145718]
[1643788047845,1.3399,2752.3,2752.2,1.1145718]
[1643788048049,2.47475461,2752.3,2752.2,1.1145718]
[1643788048245,0.52268361,2752.3,2752.2,1.1145718]
[1643788049644,4.65,2752.2,2751.5,0.1816]
[1643788049845,2.82710128,2752.3,2751.5,0.1816]
[1643788049846,6.25121321,2752.1,2751.5,0.1816]
[1643788050047,0.524,2752.0,2751.5,0.1816]
[1643788052700,3.35590927,2752.0,2751.5,0.1816]
[1643788053100,1.0,2751.9,2751.5,0.1816]
[1643788053304,0.524,2751.8,2751.5,0.1816]
[1643788054438,2.3414709,2751.8,2751.5,0.1816]
[1643788054641,0.3,2751.7,2751.5,0.1816]
[1643788054839,0.524,2751.6,2751.5,0.1816]
[1643788057789,0.824,2751.6,2751.5,0.1816]
[1643788058391,0.824,2751.6,2751.4,0.25399458]
[1643788058592,1.99960031,2751.5,2751.4,0.25399458]
[1643788058807,0.524,2751.5,2751.4,0.25399458]
[1643788059193,0.524,2751.9,2751.4,0.25399458]
[1643788060094,0.824,2751.9,2751.4,0.25399458]
[1643788060693,1.7326078,2751.9,2751.4,0.25399458]
[1643788060894,1.97716535,2751.8,2751.4,0.25399458]
[1643788061093,0.524,2751.7,2751.4,0.25399458]
[1643788061293,3.3416199,2751.7,2751.4,0.25399458]
[1643788061537,3.6416199,2751.7,2751.4,0.25399458]
[1643788063141,3.6416199,2751.7,2751.4,0.25313839]
[1643788064942,2.3416199,2751.7,2751.6,0.86278216]
[1643788065144,0.9088019,2751.9,2751.6,0.86278216]
[1643788065392,0.1817,2752.5,2751.6,0.86278216]
[1643788065596,1.53583244,2752.4,2751.6,0.86278216]
[1643788066793,2.83583244,2752.4,2751.6,0.86278216]
[1643788066994,1.53583244,2752.3,2751.6,0.86278216]
[1643788067196,1.53583244,2752.3,2751.4,0.25313839]
[1643788067403,1.8172575,2752.1,2751.5,0.1816]
[1643788067598,2.06004886,2752.0,2751.4,0.25313839]
[1643788067796,1.53604886,2751.9,2751.4,0.25313839]
[1643788068095,0.524,2751.9,2751.4,0.25313839]
[1643788068296,0.524,2751.9,2751.5,0.72932603]
[1643788068498,0.4817,2752.0,2751.5,0.72932603]
[1643788068700,1.2085592,2752.1,2751.5,0.72932603]
[1643788069142,1.2085592,2752.1,2751.5,1.02932603]
[1643788070751,1.2085592,2752.1,2751.5,0.72932603]
[1643788072889,1.2085592,2752.1,2751.5,0.91092603]
[1643788074095,1.53596724,2752.0,2751.5,0.91092603]
[1643788074294,2.53596724,2752.0,2751.5,0.91092603]
[1643788074496,1.0,2752.0,2751.5,0.91092603]
[1643788074895,0.1817,2752.3,2751.5,0.91092603]
[1643788075107,0.1816,2752.5,2751.5,1.09241603]
[1643788075398,1.53585556,2752.4,2751.5,1.09241603]
[1643788075594,1.83585556,2752.4,2751.5,1.09241603]
[1643788075796,1.53585556,2752.3,2751.5,1.09241603]
[1643788075995,1.53585556,2752.3,2751.5,0.91092603]
[1643788077054,0.49874108,2752.0,2751.5,0.91092603]
[1643788077766,0.49874108,2752.0,2751.5,1.21092603]
[1643788078756,0.49874108,2752.0,2751.5,0.91092603]
[1643788080999,0.49874108,2752.0,2751.5,2.30075603]
[1643788081199,0.49874108,2752.0,2751.5,2.11926603]
[1643788081200,0.34874108,2752.0,2751.5,2.11926603]
[1643788081400,0.34874108,2752.0,2751.5,0.4816]
[1643788081600,0.34874108,2752.0,2751.5,0.1816]
[1643788082300,0.64874108,2752.0,2751.5,0.1816]
[1643788084341,0.64874108,2752.0,2751.4,0.97519542]
[1643788084940,1.53594177,2751.9,2751.4,0.97519542]
[1643788085746,0.64874108,2752.0,2751.4,0.97519542]
[1643788085947,1.53594389,2751.9,2751.4,0.97519542]
[1643788090698,1.53594389,2751.9,2751.4,0.25313839]
[1643788091954,1.53594389,2751.9,2751.5,0.00398768]
[1643788093858,3.54543756,2751.9,2751.5,0.00398768]
[1643788094160,2.53594389,2751.8,2751.5,0.00398768]
[1643788094358,2.05994389,2751.7,2751.5,0.00398768]
[1643788094657,1.71764389,2751.6,2751.5,0.00398768]
[1643788094856,2.54164389,2751.6,2751.5,0.00398768]
[1643788095059,4.47807799,2751.6,2751.5,0.00398768]
[1643788095300,5.47807799,2751.6,2751.5,0.00398768]
[1643788095500,3.54164389,2751.6,2751.5,0.00398768]
[1643788098103,5.49541234,2751.6,2751.5,0.00398768]
[1643788098304,5.49929734,2751.6,2751.5,0.00398768]
[1643788098703,3.54164389,2751.6,2751.5,0.00398768]
[1643788098903,5.49222754,2751.6,2751.5,0.00398768]
[1643788099946,5.49222754,2751.6,2751.4,0.24914381]
[1643788099947,0.9089752,2751.4,2750.7,0.1817]
[1643788100140,4.34197149,2751.3,2750.6,0.25]
[1643788100340,2.53594389,2751.2,2750.6,0.25]
[1643788100547,4.19130335,2751.1,2750.6,0.25]
[1643788100741,2.53594389,2751.0,2750.6,0.25]
[1643788100943,2.46964796,2750.9,2750.6,0.25]
[1643788101146,0.824,2750.9,2750.6,0.25]
[1643788101343,1.877,2750.9,2750.6,0.25]
[1643788103090,2.7859645,2750.9,2750.6,0.25]
[1643788103290,1.0,2750.8,2750.6,0.25]
[1643788103493,1.524,2750.8,2750.6,0.25]
[1643788104095,0.524,2750.8,2750.6,0.25]
[1643788104294,1.524,2750.8,2750.6,0.25]
[1643788104496,0.524,2750.8,2750.6,0.25]
[1643788104695,1.524,2750.8,2750.6,0.25]
[1643788104896,0.524,2750.8,2750.6,0.25]
[1643788105098,1.524,2750.8,2750.6,0.25]
[1643788106844,2.0,2750.7,2750.6,0.25]
[1643788107047,0.524,2750.7,2750.6,0.25]
[1643788107245,0.824,2750.7,2750.6,0.25]
[1643788109347,1.824,2750.7,2750.1,1.1964]
[1643788109549,2.8195065,2750.6,2750.2,0.25]
[1643788109750,0.524,2750.5,2750.2,0.25]
[1643788109950,2.02146008,2750.4,2750.2,0.25]
[1643788110150,0.524,2750.3,2750.2,0.25]
[1643788110395,1.524,2750.3,2750.2,0.25]
[1643788110998,1.524,2750.3,2749.9,0.1817]
[1643788111197,2.4331165,2750.3,2749.9,0.4317]
[1643788111407,0.3,2750.2,2749.9,0.4317]
[1643788111601,0.524,2750.1,2749.9,0.4317]
[1643788114648,0.524,2750.1,2749.9,0.25]
[1643788115248,0.274,2750.2,2749.9,0.25]
[1643788115454,0.524,2750.1,2749.9,0.25]
[1643788116259,1.93780718,2750.0,2749.9,0.25]
[1643788116456,0.7057,2750.0,2749.9,0.25]
[1643788116854,1.7057,2750.0,2749.9,0.25]
[1643788117154,2.0057,2750.0,2749.9,0.25]
[1643788117353,0.9094316,2749.8,2749.2,0.25]
[1643788117554,0.524,2749.7,2749.2,0.25]
[1643788117800,0.824,2749.7,2749.2,0.25]
[1643788118194,1.824,2749.7,2749.2,0.25]
[1643788118393,0.524,2749.7,2749.2,0.25]
[1643788119599,0.824,2749.7,2749.2,0.25]
[1643788120799,0.1817,2749.6,2749.2,0.25]
[1643788121000,0.524,2749.5,2749.2,0.25]
[1643788121401,1.824,2749.5,2749.2,0.25]
[1643788121663,0.7058,2749.6,2749.3,2.0]
[1643788121868,0.7058,2749.6,2749.2,0.25]
[1643788121869,0.1818,2749.6,2749.2,0.25]
[1643788122064,0.1817,2750.0,2749.2,0.25]
[1643788122260,0.1817,2750.0,2749.3,2.1816]
[1643788122462,0.1817,2750.6,2749.9,5.43911029]
[1643788122664,0.1817,2750.6,2750.4,0.7806664]
[1643788122864,0.1817,2750.6,2750.1,0.25]
[1643788123860,0.1817,2750.6,2750.4,0.91542954]
[1643788124860,0.1817,2750.6,2750.1,0.25]
[1643788125064,0.524,2750.5,2750.1,0.25]
[1643788125296,0.1817,2750.4,2750.1,0.25]
[1643788125497,0.524,2750.3,2750.1,0.25]
[1643788125997,0.824,2750.3,2750.1,0.25]
[1643788126801,1.7332036,2750.3,2750.1,0.25]
[1643788127806,0.824,2750.3,2750.1,0.25]
[1643788129147,1.0057,2750.3,2750.1,0.25]
[1643788129560,0.824,2750.3,2750.1,0.25]
[1643788129955,1.0057,2750.3,2750.1,0.25]
[1643788130154,1.0057,2750.3,2749.6,0.1817]
[1643788130155,2.8243068,2750.3,2749.6,0.1817]
[1643788130353,0.9093849,2750.0,2749.2,0.1817]
[1643788130553,0.524,2749.9,2749.2,0.1817]
[1643788130754,1.6973,2750.3,2749.2,1.05193705]
[1643788130755,0.524,2749.8,2749.2,1.05193705]
[1643788130952,0.524,2749.7,2749.2,1.05193705]
[1643788131354,0.824,2749.7,2749.2,1.05193705]
[1643788132257,0.824,2749.7,2749.2,0.87023705]
[1643788133300,0.824,2749.7,2749.0,0.1817]
[1643788133301,1.9582189,2749.6,2749.0,0.1817]
[1643788133498,1.433473,2749.5,2748.9,1.2962718]
[1643788133704,2.01247524,2749.4,2748.9,1.2962718]
[1643788133902,1.433473,2749.5,2748.9,1.2962718]
[1643788133903,0.524,2749.3,2748.9,1.2962718]
[1643788134303,0.824,2749.3,2748.9,1.1145718]
[1643788134906,3.5525835,2749.3,2748.9,1.1145718]
[1643788136854,1.0,2749.2,2748.9,1.1145718]
[1643788137144,0.524,2749.1,2748.9,1.1145718]
[1643788140897,0.1817,2749.6,2748.9,1.1145718]
[1643788140898,1.4334422,2749.5,2748.9,1.1145718]
[1643788141094,1.4334422,2749.5,2748.9,1.5962718]
[1643788141095,0.524,2749.5,2748.9,1.5962718]
[1643788141494,0.524,2749.5,2748.9,1.2962718]
[1643788142100,1.4334211,2749.5,2748.9,1.2962718]
[1643788142298,1.7334211,2749.5,2748.9,1.2962718]
[1643788143300,1.00008586,2749.4,2748.9,1.2962718]
[1643788143705,2.00008586,2749.4,2748.9,1.2962718]
[1643788143903,1.00008586,2749.4,2748.9,1.2962718]
[1643788144453,1.00008586,2749.3,2748.9,1.5962718]
[1643788144652,1.00008586,2749.3,2748.9,1.2962718]
[1643788145055,1.00008586,2749.2,2748.9,1.2962718]
[1643788147562,1.00008586,2749.2,2748.9,1.1145718]
[1643788148206,1.00008586,2749.1,2748.9,1.1145718]
[1643788151014,1.30008586,2749.1,2748.9,1.1145718]
[1643788152562,1.00008586,2749.1,2748.9,1.4145718]
[1643788152958,1.00008586,2749.1,2748.9,1.1145718]
[1643788153365,0.99851111,2749.1,2748.9,1.1145718]
[1643788153957,0.99851111,2749.1,2748.9,1.4145718]
[1643788154856,0.99851111,2749.1,2748.9,1.1145718]
[1643788155710,0.99851111,2749.1,2748.9,1.4145718]
[1643788157821,0.99851111,2749.1,2748.9,1.1145718]
[1643788158810,0.99851111,2749.1,2748.9,1.4145718]
[1643788161248,1.34725219,2749.0,2748.9,1.4145718]
[1643788162156,1.34725219,2749.0,2748.9,1.5960618]
[1643788162354,1.34725219,2749.0,2748.9,1.1145718]
[1643788164002,1.64725219,2749.0,2748.9,1.1145718]
[1643788164199,1.82895219,2749.0,2748.9,1.1145718]
[1643788165306,1.52895219,2749.0,2748.9,1.1145718]
[1643788165702,1.34725219,2749.0,2748.9,1.1145718]
[1643788166555,1.34725219,2749.0,2748.9,1.2960618]
[1643788166959,1.34725219,2749.0,2748.9,1.1145718]
[1643788167661,3.18488625,2749.0,2748.9,1.1145718]
[1643788168070,6.28014557,2749.0,2748.9,1.1145718]
[1643788168264,5.28014557,2749.0,2748.9,1.1145718]
[1643788168463,3.36658625,2749.0,2748.9,1.1145718]
[1643788168658,4.36658625,2749.0,2748.9,1.1145718]
[1643788169460,4.89058625,2749.0,2748.9,1.1145718]
[1643788172015,3.89058625,2749.0,2748.9,1.1145718]
[1643788173014,3.59058625,2749.0,2748.9,1.1145718]
[1643788173413,3.89058625,2749.0,2748.9,1.1145718]
[1643788174245,4.89058625,2749.0,2748.9,1.1145718]